[Event "*** Titled Tuesday Blitz"]
[Site "Chess.com"]
[Date "2020.04.28"]
[Round "4"]
[White "thedjoker98"]
[Black "temus_galaktionov"]
[Result "0-1"]
[WhiteElo "2516"]
[BlackElo "2760"]
[TimeControl "180+1"]
[EndTime "10:41:02 PDT"]
[Termination "temus_galaktionov won by resignation"]

1. d4 {[%clk 0:03:00.9]} 1... c6 {[%clk 0:03:00.9]} 2. c4 {[%clk 0:03:01.1]}
2... g6 {[%clk 0:02:55.2]} 3. Nc3 {[%clk 0:03:00.7]} 3... Bg7 {[%clk 0:02:54.3]}
4. e4 {[%clk 0:03:00.8]} 4... d6 {[%clk 0:02:53.9]} 5. h3 {[%clk 0:03:00.5]}
5... Nd7 {[%clk 0:02:53]} 6. Nf3 {[%clk 0:03:00]} 6... e5 {[%clk 0:02:51.8]} 7.
dxe5 {[%clk 0:02:59]} 7... dxe5 {[%clk 0:02:51.2]} 8. Be3 {[%clk 0:02:58.7]}
8... Qe7 {[%clk 0:02:49.8]} 9. Be2 {[%clk 0:02:56.9]} 9... Ngf6 {[%clk
0:02:49.4]} 10. O-O {[%clk 0:02:56.7]} 10... O-O {[%clk 0:02:49.3]} 11. Qc2
{[%clk 0:02:55.5]} 11... Nh5 {[%clk 0:02:45.1]} 12. Rfd1 {[%clk 0:02:54.2]}
12... Nf4 {[%clk 0:02:44.9]} 13. Bf1 {[%clk 0:02:54.3]} 13... Nc5 {[%clk
0:02:43.3]} 14. b4 {[%clk 0:02:43.8]} 14... Nce6 {[%clk 0:02:43]} 15. c5 {[%clk
0:02:44.2]} 15... Qf6 {[%clk 0:02:42.7]} 16. Nh2 {[%clk 0:02:35]} 16... h5
{[%clk 0:02:41.4]} 17. Kh1 {[%clk 0:02:31.8]} 17... Nd4 {[%clk 0:02:41.1]} 18.
Qb2 {[%clk 0:02:29.8]} 18... Be6 {[%clk 0:02:39.2]} 19. Ne2 {[%clk 0:02:21.9]}
19... Rfd8 {[%clk 0:02:17.4]} 20. Bxd4 {[%clk 0:01:20.3]} 20... exd4 {[%clk
0:02:07.1]} 21. Nxf4 {[%clk 0:01:19.6]} 21... Qxf4 {[%clk 0:02:06.8]} 22. Bd3
{[%clk 0:01:20.5]} 22... a5 {[%clk 0:01:56.5]} 23. a3 {[%clk 0:01:19.1]} 23...
axb4 {[%clk 0:01:46.4]} 24. axb4 {[%clk 0:01:20]} 24... h4 {[%clk 0:01:40.8]}
25. Nf1 {[%clk 0:01:17.5]} 25... Be5 {[%clk 0:01:32.6]} 26. Qd2 {[%clk
0:01:09.7]} 26... Qf6 {[%clk 0:01:20.8]} 27. Qe1 {[%clk 0:01:05.9]} 27... Bc7
{[%clk 0:01:04.2]} 28. Qe2 {[%clk 0:00:45.8]} 28... Qf4 {[%clk 0:00:57.9]} 29.
Kg1 {[%clk 0:00:41.4]} 29... Qg5 {[%clk 0:00:52.5]} 30. Kh1 {[%clk 0:00:40.4]}
30... Qf4 {[%clk 0:00:49.3]} 31. Kg1 {[%clk 0:00:40.1]} 31... b6 {[%clk
0:00:49.5]} 32. cxb6 {[%clk 0:00:33.8]} 32... Bxb6 {[%clk 0:00:50.4]} 33. Qd2
{[%clk 0:00:33.2]} 33... Qd6 {[%clk 0:00:46.2]} 34. Qg5 {[%clk 0:00:31]} 34...
Qxb4 {[%clk 0:00:39.1]} 35. e5 {[%clk 0:00:30.8]} 35... Rxa1 {[%clk 0:00:31.2]}
36. Rxa1 {[%clk 0:00:31.7]} 36... Kf8 {[%clk 0:00:27.3]} 37. Rb1 {[%clk
0:00:27.7]} 37... Qc5 {[%clk 0:00:26]} 38. Nd2 {[%clk 0:00:22.7]} 38... Bc7
{[%clk 0:00:24.8]} 39. Nf3 {[%clk 0:00:19.9]} 39... Qe7 {[%clk 0:00:22.6]} 40.
Qh6+ {[%clk 0:00:18]} 40... Ke8 {[%clk 0:00:21.5]} 41. Rb7 {[%clk 0:00:18.4]}
41... Rb8 {[%clk 0:00:20.6]} 42. Qh8+ {[%clk 0:00:16.9]} 42... Qf8 {[%clk
0:00:20.7]} 43. Qxf8+ {[%clk 0:00:17]} 43... Kxf8 {[%clk 0:00:20.3]} 44. Rxc7
{[%clk 0:00:17.9]} 44... Rb3 {[%clk 0:00:18.6]} 45. Be4 {[%clk 0:00:17.4]} 45...
d3 {[%clk 0:00:17]} 46. Rxc6 {[%clk 0:00:16.7]} 46... Rb1+ {[%clk 0:00:15.2]}
47. Kh2 {[%clk 0:00:16.6]} 47... Rb2 {[%clk 0:00:16.1]} 48. Rd6 {[%clk
0:00:16.6]} 48... Rxf2 {[%clk 0:00:15.6]} 49. Rxd3 {[%clk 0:00:17]} 49... Kg7
{[%clk 0:00:15]} 50. Nxh4 {[%clk 0:00:17.2]} 50... Kh6 {[%clk 0:00:13.9]} 51.
Nf3 {[%clk 0:00:17.4]} 51... Re2 {[%clk 0:00:13.5]} 52. Bd5 {[%clk 0:00:17.2]}
52... Bf5 {[%clk 0:00:13.7]} 53. Kg3 {[%clk 0:00:17]} 53... Bxd3 {[%clk
0:00:13.2]} 0-1

[Event "*** Titled Tuesday Blitz"]
[Site "Chess.com"]
[Date "2020.04.28"]
[Round "4"]
[White "rynos0411"]
[Black "HaryKane"]
[Result "1-0"]
[WhiteElo "2379"]
[BlackElo "2589"]
[TimeControl "180+1"]
[EndTime "10:41:03 PDT"]
[Termination "rynos0411 won by resignation"]

1. e4 {[%clk 0:03:00.9]} 1... e6 {[%clk 0:03:00.9]} 2. d4 {[%clk 0:02:59.9]}
2... d5 {[%clk 0:03:01.5]} 3. exd5 {[%clk 0:03:00.8]} 3... exd5 {[%clk
0:03:02.4]} 4. Bd3 {[%clk 0:03:00.2]} 4... Nc6 {[%clk 0:03:02.1]} 5. Ne2 {[%clk
0:03:00.2]} 5... Be6 {[%clk 0:03:00.5]} 6. c3 {[%clk 0:02:59.8]} 6... Qd7 {[%clk
0:03:00.8]} 7. O-O {[%clk 0:02:59.9]} 7... O-O-O {[%clk 0:03:00.6]} 8. Nf4
{[%clk 0:02:59.7]} 8... Bd6 {[%clk 0:02:58.2]} 9. Nxe6 {[%clk 0:02:59.5]} 9...
fxe6 {[%clk 0:02:59.1]} 10. h3 {[%clk 0:02:57.2]} 10... e5 {[%clk 0:02:56.4]}
11. dxe5 {[%clk 0:02:54.8]} 11... Nxe5 {[%clk 0:02:55.6]} 12. Be2 {[%clk
0:02:55.3]} 12... Nf6 {[%clk 0:02:54.1]} 13. Bg5 {[%clk 0:02:54.4]} 13... Kb8
{[%clk 0:02:49.7]} 14. Na3 {[%clk 0:02:49.1]} 14... Qf5 {[%clk 0:02:46.3]} 15.
Be3 {[%clk 0:02:44.5]} 15... g5 {[%clk 0:02:40.5]} 16. Nb5 {[%clk 0:02:42.3]}
16... a6 {[%clk 0:02:32.7]} 17. Nxd6 {[%clk 0:02:41.9]} 17... Rxd6 {[%clk
0:02:33.6]} 18. Bc5 {[%clk 0:02:37.6]} 18... Rd7 {[%clk 0:02:26.4]} 19. Bd4
{[%clk 0:02:36.8]} 19... h5 {[%clk 0:02:22.9]} 20. Re1 {[%clk 0:02:33.5]} 20...
g4 {[%clk 0:02:16.6]} 21. h4 {[%clk 0:02:25]} 21... Ne4 {[%clk 0:02:10.5]} 22.
Bd3 {[%clk 0:02:20.2]} 22... Nxd3 {[%clk 0:02:01.2]} 23. Qxd3 {[%clk 0:02:19.9]}
23... Rf8 {[%clk 0:01:59.7]} 24. Rf1 {[%clk 0:02:10.2]} 24... Rdf7 {[%clk
0:01:50.1]} 25. Rad1 {[%clk 0:01:54.2]} 25... Qe6 {[%clk 0:01:37.3]} 26. Be3
{[%clk 0:01:46.8]} 26... c6 {[%clk 0:01:36.3]} 27. Qd4 {[%clk 0:01:38.9]} 27...
g3 {[%clk 0:01:14.9]} 28. f3 {[%clk 0:01:34.2]} 28... Nd6 {[%clk 0:01:09.2]} 29.
Rfe1 {[%clk 0:01:30]} 29... Qf6 {[%clk 0:00:57.2]} 30. Qa7+ {[%clk 0:00:49.6]}
30... Kc8 {[%clk 0:00:56.6]} 31. Bg5 {[%clk 0:00:48.5]} 31... Qg6 {[%clk
0:00:44.4]} 32. Rd2 {[%clk 0:00:45.1]} 32... Kc7 {[%clk 0:00:40.3]} 33. Rde2
{[%clk 0:00:40.8]} 33... Nc8 {[%clk 0:00:37.2]} 34. Qd4 {[%clk 0:00:38.2]} 34...
Qf5 {[%clk 0:00:33.7]} 35. Qe5+ {[%clk 0:00:31.8]} 35... Qxe5 {[%clk 0:00:33.5]}
36. Rxe5 {[%clk 0:00:31.2]} 36... Rf5 {[%clk 0:00:33.5]} 37. Rxf5 {[%clk
0:00:25.7]} 37... Rxf5 {[%clk 0:00:34.4]} 38. Re8 {[%clk 0:00:25.8]} 38... Nd6
{[%clk 0:00:34.6]} 39. Rh8 {[%clk 0:00:25.4]} 39... Re5 {[%clk 0:00:34.5]} 40.
Kf1 {[%clk 0:00:24.6]} 40... Kb6 {[%clk 0:00:27.1]} 41. Bf4 {[%clk 0:00:23.9]}
41... Re6 {[%clk 0:00:21.7]} 42. Bxd6 {[%clk 0:00:23.9]} 42... Rxd6 {[%clk
0:00:22.6]} 43. Rxh5 {[%clk 0:00:24.1]} 43... d4 {[%clk 0:00:23.2]} 44. Rg5
{[%clk 0:00:16.9]} 44... dxc3 {[%clk 0:00:20.2]} 45. bxc3 {[%clk 0:00:17.8]}
45... Rd1+ {[%clk 0:00:20]} 46. Ke2 {[%clk 0:00:18.3]} 46... Ra1 {[%clk
0:00:20.4]} 47. Rxg3 {[%clk 0:00:18.8]} 47... Rxa2+ {[%clk 0:00:21.3]} 48. Kd3
{[%clk 0:00:19.3]} 48... Ra1 {[%clk 0:00:22.1]} 49. h5 {[%clk 0:00:19.2]} 49...
a5 {[%clk 0:00:21.1]} 50. h6 {[%clk 0:00:19.4]} 50... Rd1+ {[%clk 0:00:21.3]}
51. Kc4 {[%clk 0:00:17.1]} 51... Rd8 {[%clk 0:00:20.7]} 52. Rg7 {[%clk
0:00:14.2]} 52... Rh8 {[%clk 0:00:19.8]} 53. h7 {[%clk 0:00:14.5]} 53... Ka6
{[%clk 0:00:20.1]} 54. g4 {[%clk 0:00:14.6]} 54... b5+ {[%clk 0:00:20.2]} 55.
Kb3 {[%clk 0:00:15]} 55... Kb6 {[%clk 0:00:19.9]} 56. g5 {[%clk 0:00:15]} 56...
Kc5 {[%clk 0:00:20.6]} 57. g6 {[%clk 0:00:15.1]} 57... a4+ {[%clk 0:00:21.5]}
58. Ka3 {[%clk 0:00:15]} 58... Kc4 {[%clk 0:00:22]} 59. Rg8 {[%clk 0:00:14.9]}
59... Kxc3 {[%clk 0:00:22.3]} 60. Rxh8 {[%clk 0:00:14.8]} 60... c5 {[%clk
0:00:22.4]} 61. Rc8 {[%clk 0:00:13.8]} 1-0

[Event "*** Titled Tuesday Blitz"]
[Site "Chess.com"]
[Date "2020.04.28"]
[Round "4"]
[White "GMStefanova"]
[Black "Philosopherrr"]
[Result "1-0"]
[WhiteElo "2682"]
[BlackElo "2478"]
[TimeControl "180+1"]
[EndTime "10:41:04 PDT"]
[Termination "GMStefanova won on time"]

1. Nf3 {[%clk 0:03:00.9]} 1... Nf6 {[%clk 0:02:59.4]} 2. g3 {[%clk 0:03:00.8]}
2... g6 {[%clk 0:02:57.5]} 3. Bg2 {[%clk 0:03:01.3]} 3... Bg7 {[%clk 0:02:58.2]}
4. O-O {[%clk 0:03:01.9]} 4... O-O {[%clk 0:02:58.7]} 5. d4 {[%clk 0:03:02.6]}
5... c6 {[%clk 0:02:56]} 6. Bf4 {[%clk 0:03:01]} 6... d6 {[%clk 0:02:55.8]} 7.
Qc1 {[%clk 0:02:59.1]} 7... Re8 {[%clk 0:02:50.2]} 8. Rd1 {[%clk 0:02:59]} 8...
a5 {[%clk 0:02:44.9]} 9. c4 {[%clk 0:02:54.9]} 9... Ne4 {[%clk 0:02:41.3]} 10.
Bh6 {[%clk 0:02:51]} 10... Bh8 {[%clk 0:02:40.3]} 11. Ne1 {[%clk 0:02:39.7]}
11... Nf6 {[%clk 0:02:36.9]} 12. Nc3 {[%clk 0:02:38.4]} 12... Nbd7 {[%clk
0:02:24.1]} 13. e4 {[%clk 0:02:34.7]} 13... Qb6 {[%clk 0:02:20.9]} 14. h3 {[%clk
0:02:32.4]} 14... e5 {[%clk 0:02:18.4]} 15. Be3 {[%clk 0:02:32.2]} 15... Qa6
{[%clk 0:02:17.6]} 16. dxe5 {[%clk 0:02:26.7]} 16... dxe5 {[%clk 0:02:08.5]} 17.
Bf1 {[%clk 0:02:22.6]} 17... a4 {[%clk 0:02:07]} 18. c5 {[%clk 0:02:16.8]} 18...
Qa5 {[%clk 0:02:07.2]} 19. Nd3 {[%clk 0:02:15.6]} 19... Bg7 {[%clk 0:01:58.9]}
20. b4 {[%clk 0:02:01.9]} 20... Qc7 {[%clk 0:01:36.7]} 21. Nb2 {[%clk 0:01:57]}
21... b5 {[%clk 0:01:17.8]} 22. cxb6 {[%clk 0:01:55.8]} 22... Nxb6 {[%clk
0:01:17.1]} 23. Nb5 {[%clk 0:01:54.3]} 23... Qb8 {[%clk 0:01:16.2]} 24. Qxc6
{[%clk 0:01:48.4]} 24... a3 {[%clk 0:01:03.2]} 25. Nd3 {[%clk 0:01:34]} 25...
Re6 {[%clk 0:00:50.6]} 26. Qc7 {[%clk 0:01:28.9]} 26... Ba6 {[%clk 0:00:47.4]}
27. Qxb8+ {[%clk 0:01:27.5]} 27... Rxb8 {[%clk 0:00:47.4]} 28. Nc7 {[%clk
0:01:27.5]} 28... Bxd3 {[%clk 0:00:45.3]} 29. Bxd3 {[%clk 0:01:20.9]} 29... Rc6
{[%clk 0:00:44.4]} 30. Nb5 {[%clk 0:01:12.8]} 30... Na4 {[%clk 0:00:41.9]} 31.
Nxa3 {[%clk 0:01:05.9]} 31... Nb2 {[%clk 0:00:40.9]} 32. Rd2 {[%clk 0:00:58.5]}
32... Nxd3 {[%clk 0:00:40.7]} 33. Rxd3 {[%clk 0:00:58.7]} 33... Nxe4 {[%clk
0:00:40.9]} 34. b5 {[%clk 0:00:57.3]} 34... Rc7 {[%clk 0:00:29.1]} 35. b6 {[%clk
0:00:56.5]} 35... Rc6 {[%clk 0:00:29]} 36. Rad1 {[%clk 0:00:48.3]} 36... Rcxb6
{[%clk 0:00:24]} 37. Rd8+ {[%clk 0:00:41.8]} 37... Bf8 {[%clk 0:00:24.2]} 38.
Bxb6 {[%clk 0:00:38.6]} 38... Rxb6 {[%clk 0:00:24.5]} 39. Nc4 {[%clk 0:00:37.9]}
39... Re6 {[%clk 0:00:23.3]} 40. a4 {[%clk 0:00:35.3]} 40... Nc3 {[%clk
0:00:22.5]} 41. Ra1 {[%clk 0:00:34.1]} 41... Kg7 {[%clk 0:00:17.8]} 42. a5
{[%clk 0:00:33.9]} 42... Ra6 {[%clk 0:00:18]} 43. Nxe5 {[%clk 0:00:32.8]} 43...
Bc5 {[%clk 0:00:16.7]} 44. Rd7 {[%clk 0:00:29.4]} 44... Ne4 {[%clk 0:00:14.3]}
45. Rxf7+ {[%clk 0:00:26.4]} 45... Kg8 {[%clk 0:00:11.4]} 46. Rf4 {[%clk
0:00:25.3]} 46... Nxf2 {[%clk 0:00:10.9]} 47. Rxf2 {[%clk 0:00:24.1]} 1-0

[Event "*** Titled Tuesday Blitz"]
[Site "Chess.com"]
[Date "2020.04.28"]
[Round "4"]
[White "Spartakus1975"]
[Black "IvanRadivojevic"]
[Result "1-0"]
[WhiteElo "2740"]
[BlackElo "2487"]
[TimeControl "180+1"]
[EndTime "10:41:05 PDT"]
[Termination "Spartakus1975 won by resignation"]

1. e4 {[%clk 0:03:00.9]} 1... c6 {[%clk 0:03:00]} 2. d3 {[%clk 0:02:59.6]} 2...
d5 {[%clk 0:03:00.9]} 3. Nd2 {[%clk 0:02:58.7]} 3... e5 {[%clk 0:03:01.4]} 4.
Ngf3 {[%clk 0:02:57.3]} 4... Bd6 {[%clk 0:03:01.9]} 5. d4 {[%clk 0:02:56.9]}
5... exd4 {[%clk 0:02:59.4]} 6. exd5 {[%clk 0:02:56]} 6... c5 {[%clk 0:02:59.3]}
7. Bb5+ {[%clk 0:02:52.7]} 7... Bd7 {[%clk 0:02:57.8]} 8. Qe2+ {[%clk
0:02:48.9]} 8... Ne7 {[%clk 0:02:57.7]} 9. Ne4 {[%clk 0:02:41.2]} 9... Qc7
{[%clk 0:02:20.9]} 10. Bg5 {[%clk 0:02:21.5]} 10... f6 {[%clk 0:02:17.7]} 11.
Bxf6 {[%clk 0:02:11.3]} 11... gxf6 {[%clk 0:02:17.7]} 12. Nxf6+ {[%clk
0:02:10.7]} 12... Kd8 {[%clk 0:02:07.4]} 13. O-O {[%clk 0:01:40.2]} 13... a6
{[%clk 0:02:07.1]} 14. Bxd7 {[%clk 0:01:34.8]} 14... Nxd7 {[%clk 0:02:08]} 15.
Ng5 {[%clk 0:01:34.2]} 15... Bxh2+ {[%clk 0:01:41]} 16. Kh1 {[%clk 0:01:33.1]}
16... Nxf6 {[%clk 0:01:20.1]} 17. Ne6+ {[%clk 0:01:30.5]} 17... Ke8 {[%clk
0:01:15.7]} 18. Nxc7+ {[%clk 0:01:29.1]} 18... Bxc7 {[%clk 0:01:16.6]} 19. d6
{[%clk 0:01:21.9]} 19... Bxd6 {[%clk 0:01:12]} 20. Qe6 {[%clk 0:01:21.8]} 20...
Be5 {[%clk 0:01:05.1]} 21. Qxe5 {[%clk 0:01:20.2]} 21... Kf7 {[%clk 0:01:06]}
22. Qxc5 {[%clk 0:01:17.5]} 22... Rad8 {[%clk 0:01:03.2]} 23. Rae1 {[%clk
0:01:11.5]} 23... Ng6 {[%clk 0:01:01.7]} 24. Re2 {[%clk 0:01:00.2]} 24... Rd5
{[%clk 0:01:01.2]} 25. Qc7+ {[%clk 0:00:55.8]} 25... Rd7 {[%clk 0:01:00.7]} 26.
Qc4+ {[%clk 0:00:55.8]} 26... Kg7 {[%clk 0:01:01.1]} 27. Rfe1 {[%clk 0:00:56]}
27... Rhd8 {[%clk 0:00:59]} 28. Re6 {[%clk 0:00:54.9]} 28... Nh5 {[%clk
0:00:37.2]} 29. g3 {[%clk 0:00:50]} 29... Nf6 {[%clk 0:00:36.5]} 30. Kg2 {[%clk
0:00:47.7]} 30... h5 {[%clk 0:00:33.1]} 31. Rxf6 {[%clk 0:00:43.6]} 31... Kxf6
{[%clk 0:00:33]} 32. Re6+ {[%clk 0:00:43.9]} 32... Kg7 {[%clk 0:00:33]} 33. Qd3
{[%clk 0:00:43.9]} 33... Nf8 {[%clk 0:00:32.7]} 34. Re5 {[%clk 0:00:42.7]} 34...
h4 {[%clk 0:00:31.5]} 35. Rg5+ {[%clk 0:00:40.4]} 35... Kh6 {[%clk 0:00:31.6]}
36. Qf5 {[%clk 0:00:37.1]} 36... Rd6 {[%clk 0:00:27]} 37. Rh5+ {[%clk
0:00:29.2]} 37... Kg7 {[%clk 0:00:27.6]} 38. Rxh4 {[%clk 0:00:29.8]} 38... Rf6
{[%clk 0:00:24.9]} 39. Qg5+ {[%clk 0:00:27.6]} 39... Ng6 {[%clk 0:00:25.2]} 40.
Rf4 {[%clk 0:00:23.8]} 40... Rdf8 {[%clk 0:00:22]} 41. Rxf6 {[%clk 0:00:23.2]}
41... Rxf6 {[%clk 0:00:22.9]} 42. Qd5 {[%clk 0:00:21.8]} 42... Rc6 {[%clk
0:00:20.5]} 43. Qxd4+ {[%clk 0:00:21.3]} 43... Kf7 {[%clk 0:00:21.3]} 44. c4
{[%clk 0:00:21.7]} 44... Ne7 {[%clk 0:00:20.5]} 45. b4 {[%clk 0:00:20.3]} 45...
Re6 {[%clk 0:00:18.2]} 46. c5 {[%clk 0:00:19.8]} 46... Nf5 {[%clk 0:00:18.4]}
47. Qd5 {[%clk 0:00:19.1]} 47... Kf6 {[%clk 0:00:18.6]} 48. Qxb7 {[%clk
0:00:18.6]} 48... Re2 {[%clk 0:00:17.9]} 49. Qxa6+ {[%clk 0:00:18.6]} 49... Kg5
{[%clk 0:00:17.7]} 50. Qxe2 {[%clk 0:00:18]} 1-0

[Event "*** Titled Tuesday Blitz"]
[Site "Chess.com"]
[Date "2020.04.28"]
[Round "4"]
[White "MikaelyanArman"]
[Black "Alohamora11"]
[Result "0-1"]
[WhiteElo "2742"]
[BlackElo "2527"]
[TimeControl "180+1"]
[EndTime "10:41:05 PDT"]
[Termination "Alohamora11 won on time"]

1. Nf3 {[%clk 0:03:00.9]} 1... c5 {[%clk 0:03:00.1]} 2. g3 {[%clk 0:03:00]} 2...
g6 {[%clk 0:03:00.2]} 3. Bg2 {[%clk 0:03:00.8]} 3... Bg7 {[%clk 0:03:00.5]} 4.
O-O {[%clk 0:03:01.7]} 4... Nc6 {[%clk 0:02:59]} 5. c4 {[%clk 0:03:02.2]} 5...
e6 {[%clk 0:02:58.7]} 6. Nc3 {[%clk 0:03:02.2]} 6... Nge7 {[%clk 0:02:59.3]} 7.
d4 {[%clk 0:03:00.5]} 7... Nxd4 {[%clk 0:02:55.3]} 8. Nxd4 {[%clk 0:02:59.6]}
8... cxd4 {[%clk 0:02:55.9]} 9. Nb5 {[%clk 0:02:59.8]} 9... Qb6 {[%clk
0:02:56.5]} 10. e3 {[%clk 0:02:37.1]} 10... d5 {[%clk 0:02:56.1]} 11. Nxd4
{[%clk 0:02:27.8]} 11... dxc4 {[%clk 0:02:54.9]} 12. Qa4+ {[%clk 0:02:17.6]}
12... Bd7 {[%clk 0:02:54.7]} 13. Qxc4 {[%clk 0:02:18.1]} 13... e5 {[%clk
0:02:40.6]} 14. Ne2 {[%clk 0:01:43.9]} 14... Bb5 {[%clk 0:02:40.8]} 15. Qc2
{[%clk 0:01:43.8]} 15... Rc8 {[%clk 0:02:41.1]} 16. Qd1 {[%clk 0:01:41.2]} 16...
O-O {[%clk 0:02:41.6]} 17. a4 {[%clk 0:01:32.9]} 17... Rfd8 {[%clk 0:02:33.5]}
18. axb5 {[%clk 0:01:15.4]} 18... Rxd1 {[%clk 0:02:32.2]} 19. Rxd1 {[%clk
0:01:16.3]} 19... Qxb5 {[%clk 0:02:25.6]} 20. Nc3 {[%clk 0:01:16.5]} 20... Qb6
{[%clk 0:02:10.3]} 21. Rd7 {[%clk 0:01:12.4]} 21... Rc7 {[%clk 0:01:38.5]} 22.
Rxc7 {[%clk 0:01:02]} 22... Qxc7 {[%clk 0:01:37.2]} 23. Rxa7 {[%clk 0:01:02.6]}
23... Nc6 {[%clk 0:01:27.6]} 24. Ra8+ {[%clk 0:01:02.7]} 24... Bf8 {[%clk
0:01:27.5]} 25. e4 {[%clk 0:00:51]} 25... Kg7 {[%clk 0:01:22.4]} 26. Bg5 {[%clk
0:00:47.6]} 26... Be7 {[%clk 0:00:59.6]} 27. Nd5 {[%clk 0:00:44]} 27... Qd7
{[%clk 0:00:57.5]} 28. Be3 {[%clk 0:00:37.2]} 28... Nb4 {[%clk 0:00:49.4]} 29.
Nxe7 {[%clk 0:00:20.4]} 29... Qxe7 {[%clk 0:00:50.3]} 30. h4 {[%clk 0:00:21]}
30... Qd7 {[%clk 0:00:42.3]} 31. Kh2 {[%clk 0:00:20.5]} 31... Nd3 {[%clk
0:00:37.4]} 32. h5 {[%clk 0:00:18.4]} 32... gxh5 {[%clk 0:00:27.3]} 33. Bh3
{[%clk 0:00:18.7]} 33... Qb5 {[%clk 0:00:25.5]} 34. Bf1 {[%clk 0:00:14.5]} 34...
Qd7 {[%clk 0:00:18.7]} 35. b3 {[%clk 0:00:10.9]} 35... Ne1 {[%clk 0:00:17.4]}
36. Be2 {[%clk 0:00:09.3]} 36... Nc2 {[%clk 0:00:14.2]} 37. Bc5 {[%clk
0:00:08.4]} 37... Nd4 {[%clk 0:00:14]} 38. Bf8+ {[%clk 0:00:07.9]} 38... Kg6
{[%clk 0:00:13.6]} 39. Bd1 {[%clk 0:00:06.4]} 39... Ne6 {[%clk 0:00:08.2]} 40.
Bf3 {[%clk 0:00:04.4]} 40... Nxf8 {[%clk 0:00:08.2]} 41. Rxf8 {[%clk 0:00:05.3]}
41... Qd3 {[%clk 0:00:05.7]} 42. Kg2 {[%clk 0:00:03.6]} 42... Qxb3 {[%clk
0:00:05.2]} 43. Rg8+ {[%clk 0:00:04.2]} 43... Kf6 {[%clk 0:00:05.5]} 44. Bxh5
{[%clk 0:00:03.8]} 44... Qc2 {[%clk 0:00:05.7]} 0-1

[Event "*** Titled Tuesday Blitz"]
[Site "Chess.com"]
[Date "2020.04.28"]
[Round "4"]
[White "vohiraa"]
[Black "Joshukid"]
[Result "1-0"]
[WhiteElo "2194"]
[BlackElo "2545"]
[TimeControl "180+1"]
[EndTime "10:41:05 PDT"]
[Termination "vohiraa won by resignation"]

1. e4 {[%clk 0:03:00.9]} 1... c6 {[%clk 0:02:59.7]} 2. d4 {[%clk 0:03:00.7]}
2... d5 {[%clk 0:02:57.3]} 3. e5 {[%clk 0:03:00.8]} 3... Bf5 {[%clk 0:02:53.5]}
4. Nc3 {[%clk 0:03:00.7]} 4... e6 {[%clk 0:02:22]} 5. g4 {[%clk 0:02:59.7]} 5...
Bg6 {[%clk 0:02:20.8]} 6. Nge2 {[%clk 0:02:59.2]} 6... c5 {[%clk 0:02:21.4]} 7.
h4 {[%clk 0:02:57.1]} 7... h5 {[%clk 0:02:18]} 8. Nf4 {[%clk 0:02:51.8]} 8...
Bh7 {[%clk 0:02:18.3]} 9. Nxh5 {[%clk 0:02:49.8]} 9... Nc6 {[%clk 0:02:18.9]}
10. dxc5 {[%clk 0:02:38.1]} 10... Bxc5 {[%clk 0:02:19.8]} 11. Nxg7+ {[%clk
0:02:35]} 11... Kf8 {[%clk 0:02:18.4]} 12. Nh5 {[%clk 0:02:34.5]} 12... d4
{[%clk 0:02:17.8]} 13. Na4 {[%clk 0:02:28.5]} 13... Qd5 {[%clk 0:02:04.3]} 14.
Rg1 {[%clk 0:02:13.6]} 14... Qxe5+ {[%clk 0:01:58]} 15. Qe2 {[%clk 0:02:13.7]}
15... Qxe2+ {[%clk 0:01:55.2]} 16. Bxe2 {[%clk 0:02:14.6]} 16... Bb4+ {[%clk
0:01:40.7]} 17. c3 {[%clk 0:02:14]} 17... Be7 {[%clk 0:01:34.9]} 18. Bg5 {[%clk
0:01:57.1]} 18... Bxg5 {[%clk 0:01:15.7]} 19. hxg5 {[%clk 0:01:58]} 19... dxc3
{[%clk 0:00:46.6]} 20. bxc3 {[%clk 0:01:52.1]} 20... Nge7 {[%clk 0:00:45.8]} 21.
Nf6 {[%clk 0:01:51.5]} 21... Bg6 {[%clk 0:00:44.1]} 22. O-O-O {[%clk 0:01:49]}
22... Kg7 {[%clk 0:00:32.6]} 23. Nc5 {[%clk 0:01:45.2]} 23... b6 {[%clk
0:00:29.8]} 24. Ncd7 {[%clk 0:01:41.4]} 24... Rad8 {[%clk 0:00:28.7]} 25. Rh1
{[%clk 0:01:37.2]} 25... Rxh1 {[%clk 0:00:27.9]} 26. Rxh1 {[%clk 0:01:38.1]}
26... Nd5 {[%clk 0:00:24.3]} 27. Nxd5 {[%clk 0:01:36.9]} 27... Rxd7 {[%clk
0:00:24.4]} 28. Nf6 {[%clk 0:01:35.2]} 28... Rd8 {[%clk 0:00:22.8]} 29. f4
{[%clk 0:01:20.3]} 29... Ne7 {[%clk 0:00:22.9]} 30. Nh5+ {[%clk 0:01:10]} 30...
Kf8 {[%clk 0:00:22.8]} 31. Nf6 {[%clk 0:01:09.8]} 31... Kg7 {[%clk 0:00:22.9]}
32. Rd1 {[%clk 0:01:03.7]} 32... Rxd1+ {[%clk 0:00:19.8]} 33. Bxd1 {[%clk
0:01:03.3]} 33... Nc6 {[%clk 0:00:16.4]} 34. Bf3 {[%clk 0:01:02.7]} 34... Na5
{[%clk 0:00:16.3]} 35. Be2 {[%clk 0:01:00.3]} 35... Kf8 {[%clk 0:00:15.7]} 36.
Kd2 {[%clk 0:00:57.9]} 36... Ke7 {[%clk 0:00:16]} 37. Bd3 {[%clk 0:00:51.5]}
37... Bxd3 {[%clk 0:00:15.1]} 38. Kxd3 {[%clk 0:00:52.4]} 38... Nb7 {[%clk
0:00:14.1]} 39. Ne4 {[%clk 0:00:49.2]} 39... b5 {[%clk 0:00:11.2]} 40. f5 {[%clk
0:00:48.8]} 40... exf5 {[%clk 0:00:10]} 41. gxf5 {[%clk 0:00:49.7]} 41... a5
{[%clk 0:00:08.3]} 42. Kd4 {[%clk 0:00:49.8]} 42... b4 {[%clk 0:00:03.8]} 43.
cxb4 {[%clk 0:00:49.4]} 43... axb4 {[%clk 0:00:04.7]} 44. Kc4 {[%clk 0:00:50]}
44... Nd8 {[%clk 0:00:04.3]} 45. Kxb4 {[%clk 0:00:49.7]} 45... Nc6+ {[%clk
0:00:05]} 46. Kc5 {[%clk 0:00:49.5]} 46... Ne5 {[%clk 0:00:05]} 47. a4 {[%clk
0:00:43.6]} 47... Kd7 {[%clk 0:00:05.4]} 48. a5 {[%clk 0:00:42.7]} 48... Kc7
{[%clk 0:00:05.4]} 49. a6 {[%clk 0:00:42.7]} 49... Nd7+ {[%clk 0:00:05.2]} 50.
Kb5 {[%clk 0:00:42.2]} 50... Ne5 {[%clk 0:00:03]} 51. Nd6 {[%clk 0:00:35.7]}
51... Nf3 {[%clk 0:00:02.4]} 52. Nxf7 {[%clk 0:00:34.7]} 52... Nd4+ {[%clk
0:00:02.9]} 53. Kc5 {[%clk 0:00:31.3]} 53... Nxf5 {[%clk 0:00:03.8]} 54. a7
{[%clk 0:00:31.5]} 1-0